fUSD/lending_fUSD_20240918
["ID","MTS","AMOUNT","RATE_DAILY","PERIOD"]
[338475564,1726685432320,-236.105,0.00014048,2]
[338475565,1726685432330,-558.0,0.00014048,2]
[338475566,1726685432340,-810.0,0.00014048,2]
[338475567,1726685432350,-1902.0,0.00014048,2]
[338475568,1726685432359,-553.0,0.00014048,2]
[338475569,1726685432369,-248.0,0.00014048,2]
[338475570,1726685432378,-806.0,0.00014048,2]
[338475571,1726685432388,-3346.0,0.00014048,2]
[338475572,1726685432398,-1920.0,0.00014048,2]
[338475573,1726685432407,-150.0,0.00014048,2]
[338475574,1726685432416,-1146.0,0.00014048,2]
[338475575,1726685432426,-5865.0,0.00014048,2]
[338475576,1726685432436,-150.309,0.00014048,2]
[338475577,1726685432448,-150.0,0.00014048,2]
[338475578,1726685432457,-13486.0,0.00014048,2]
[338475579,1726685432467,-150.0,0.00014048,2]
[338475580,1726685432476,-422.65,0.00014055,2]
[338475581,1726685432486,-1505.34,0.00014055,2]
[338475582,1726685432496,-422.65,0.00014055,2]
[338475583,1726685432506,-189.43,0.00014055,2]
[338475585,1726685432515,-150.0,0.00014059,2]
[338475587,1726685432525,-150.0,0.00014192,2]
[338475589,1726685432535,-300.0,0.00014192,2]
[338475591,1726685432544,-150.0,0.00014237,2]
[338475593,1726685432555,-150.0,0.00014237,2]
[338475595,1726685432565,-152.0,0.00014381,3]
[338475597,1726685432574,-150.0,0.0001442,2]
[338475599,1726685432584,-151.02,0.00014466,2]
[338475601,1726685432594,-150.0,0.00014487,2]
[338475603,1726685432603,-1000.0,0.00014521,2]
[338475605,1726685432613,-320.249125,0.00014521,2]
[338475607,1726685432623,-1065.35074307,0.00014523,2]
[338475608,1726685432632,-824.0,0.00014701,2]
[338475609,1726685432642,-150.0,0.00014737,2]
[338475610,1726685432652,-150.0,0.0001478,2]
[338475611,1726685432662,-3000.0,0.000148,2]
[338475612,1726685432672,-150.75966,0.0001485,2]
[338475613,1726685432681,-531.0,0.0001486,2]
[338475614,1726685432692,-2000.0,0.0001488,2]
[338475615,1726685432705,-500.0,0.0001488,2]
[338475616,1726685432715,-200.0,0.0001488,2]
[338475617,1726685432725,-1309.90990522,0.0001489,2]
[338475618,1726685432735,-199.34776314,0.0001489,2]
[338475619,1726685432744,-1309.90990521,0.00014891,2]
[338475620,1726685432754,-199.3477631,0.00014891,2]
[338475621,1726685432766,-1309.90990521,0.00014892,2]
[338475622,1726685432777,-199.3477631,0.00014893,2]
[338475623,1726685432786,-1309.90990521,0.00014893,2]
[338475624,1726685432796,-199.3477631,0.00014894,2]
[338475625,1726685432806,-1309.90990521,0.00014894,2]
[338475626,1726685432816,-1309.90990521,0.00014896,2]
[338475627,1726685432826,-199.3477631,0.00014896,2]
[338475628,1726685432836,-1309.90990521,0.00014897,2]
[338475629,1726685432848,-1309.90990521,0.00014898,2]
[338475630,1726685432858,-1309.90990521,0.00014899,2]
[338475631,1726685432868,-7412.77,0.000149,2]
[338475632,1726685432878,-8500.0,0.000149,2]
[338475633,1726685432890,-195.38172942,0.000149,2]
[338475634,1726685432899,-156.2770892,0.000149,2]
[338475635,1726685432908,-192.0686,0.000149,2]
[338475636,1726685432918,-1309.90990521,0.000149,2]
[338475637,1726685432928,-387.3754582,0.000149,2]
[338475638,1726685432937,-300.0,0.00014917,2]
[338475639,1726685432948,-152.0,0.00014923,4]
[338475640,1726685432958,-206.8351,0.00014925,2]
[338475641,1726685432968,-161.20141847,0.00014973,2]
[338475642,1726685432978,-500.0,0.00014973,2]
[338475643,1726685432988,-500.0,0.00014973,2]
[338475644,1726685432998,-242.45825038,0.00014986,2]
[338475645,1726685433008,-184.20907282,0.00014986,2]
[338475646,1726685433018,-299.17704059,0.00014986,2]
[338475647,1726685433027,-962.18,0.00014989,2]
[338475648,1726685433038,-500.0,0.00014989,2]
[338475649,1726685433047,-500.0,0.00014989,2]
[338475650,1726685433058,-500.0,0.00014989,2]
[338475651,1726685433068,-500.0,0.00014989,2]
[338475652,1726685433078,-212.72150978,0.00014989,2]
[338475653,1726685433087,-164321.544946,0.0001499,2]
[338475654,1726685433098,-69024.72876027,0.0001499,2]
[338475655,1726685433111,-2948.80265338,0.0001499,2]
[338475656,1726685433123,-3753.76120749,0.0001499,2]
[338475657,1726685433135,-10774.44975929,0.0001499,2]
[338475658,1726685433281,-40259.60503507,0.0001499,2]
[338475659,1726685433291,-20635.98592701,0.0001499,2]
[338475660,1726685433336,-68565.16395799,0.0001499,2]
[338475661,1726685433346,-51640.9523544,0.0001499,2]
[338475662,1726685433356,-14080.7548239,0.0001499,2]
[338475663,1726685433365,-352.0935289,0.0001499,2]
[338475664,1726685433375,-352.0935289,0.0001499,2]
[338475665,1726685433385,-352.0935289,0.0001499,2]
[338475666,1726685433395,-352.0935289,0.0001499,2]
[338475667,1726685433405,-352.0935289,0.0001499,2]
[338475668,1726685433415,-4261.40297226,0.00014999,2]
[338475669,1726685433425,-3448.4977529,0.00014999,2]
[338475670,1726685433435,-2000.0,0.00014999,2]
[338475671,1726685433448,-12160.58085245,0.00015,2]
[338475672,1726685433458,-164.46241102,0.00015,2]
[338475673,1726685433468,-9930.6977209,0.00015,2]
[338475674,1726685433480,-281.80528968,0.00015,2]
[338475675,1726685433492,-3094.63215291,0.00015,2]
[338475676,1726685433511,-1245.568807,0.00015,2]
[338475677,1726685433524,-23400.00000001,0.00015,2]
[338475678,1726685433536,-8033.04087757,0.00015,2]
[338475739,1726685438612,-150.0,0.00014048,2]
[338475742,1726685438627,-155.07545363,0.00014048,2]
[338475745,1726685438644,-535.36854637,0.00014048,2]
[338475747,1726685438659,-321.92497364,0.0001489,2]
[338475750,1726685438674,-172.79007129,0.00014973,2]
[338475761,1726685438774,-327.20992871,0.00014973,2]
[338475764,1726685438792,-153.11,0.0001498,2]
[338475766,1726685438807,-377.22043977,0.0001499,2]
[338475768,1726685438822,-377.22043977,0.0001499,2]
[338475770,1726685438837,-377.22043977,0.0001499,2]
[338475772,1726685438852,-153.11,0.0001499,2]
[338475773,1726685438867,-153.11,0.0001499,2]
[338475774,1726685438881,-153.11,0.0001499,2]
[338475775,1726685438895,-153.11,0.0001499,2]
[338475776,1726685438909,-153.11,0.0001499,2]
[338475777,1726685438923,-153.11,0.0001499,2]
[338475778,1726685438937,-153.11,0.0001499,2]
[338475779,1726685438952,-153.11,0.0001499,2]
[338475780,1726685438967,-153.11,0.0001499,2]
[338475781,1726685438981,-153.11,0.0001499,2]
[338475782,1726685438995,-153.11,0.0001499,2]
[338475783,1726685439009,-153.11,0.0001499,2]
[338475784,1726685439022,-153.11,0.0001499,2]
[338475785,1726685439036,-13484.73531385,0.00015,2]
[338475786,1726685439053,-11216.25702667,0.00015,2]
[338475787,1726685439069,-12612.34474342,0.00015,2]
[338475788,1726685439114,-153.11,0.0001499,2]
[338475789,1726685439138,-2189702.97313846,0.00015,2]
[338475790,1726685439162,-4677.82886025,0.00015,2]
[338475791,1726685439211,-1219570.13208971,0.00015,2]
[338475792,1726685439231,-607.0,0.00015,2]
[338475793,1726685439251,-306.0,0.00015,2]
[338475794,1726685439269,-1427.2185654,0.00015,2]
[338475795,1726685439325,-153.11,0.0001499,2]
[338475796,1726685439340,-60691.07494018,0.00015,2]
[338475797,1726685439357,-463.99900633,0.00015,2]
[338475826,1726685441117,-153.11,0.0001499,2]
[338475827,1726685441126,-153.11,0.0001499,2]
[338475829,1726685441135,-18.04794705,0.0001499,2]
[338475831,1726685441147,-135.06205295,0.0001499,2]
[338475833,1726685441156,-476.87938705,0.00015,2]
[338475836,1726685441176,-222.44064223,0.00015,2]
[338475837,1726685441185,-1096.18819417,0.00015,2]
[338475838,1726685441196,-6091.085,0.00015,2]
[338475839,1726685441211,-873.2358838,0.00015,2]
[338475840,1726685441641,-4966.70078384,0.000149,2]
[338475841,1726685441650,-22033.29921616,0.00015,2]
[338475842,1726685441662,-926.0,0.00015,2]
[338475853,1726685443015,-199.3477631,0.00014897,2]
[338475854,1726685443026,-5750.4622369,0.00015,2]
[338475855,1726685443037,-2590.9,0.00015,2]
[338475856,1726685443105,-2102.0004,0.00015,2]
[338475857,1726685443117,-997.22039355,0.00015,2]
[338475962,1726685444250,-482.285006,0.00015,2]
[338476098,1726685445833,-252.866,0.00014048,2]
[338476101,1726685445844,-5241.184,0.00015,2]
[338476107,1726685445893,-276.75,0.00015,2]
[338476109,1726685445905,-478.43500002,0.00015,2]
[338476139,1726685446209,-606.37577,0.00015,2]
[338476141,1726685446221,-270.27,0.00015,2]
[338476143,1726685446232,-669.58337309,0.00015,2]
[338476145,1726685446243,-305746.83891551,0.00015,2]
[338476157,1726685446347,-53864.27358992,0.00015,2]
[338476159,1726685446358,-79172.8172448,0.00015,2]
[338476239,1726685494419,500.0,0.00011164,2]
[338476240,1726685494984,500.0,0.00011164,2]
[338476241,1726685892935,368.99,0.00011526,2]
[338476242,1726686118614,169.43,0.00010959,2]
[338476419,1726686495350,366.42,0.00011228,2]
[338476420,1726686616927,162.14,0.00010959,2]
[338476421,1726686632002,-360.35,0.00013,2]
[338476423,1726686632012,-978.97568212,0.00013,2]
[338476427,1726686632024,-625.16501288,0.00013,2]
[338476429,1726686632033,-162.56035821,0.00013039,2]
[338476439,1726686632115,-270.16964179,0.00013039,2]
[338476441,1726686632124,-516.06,0.0001304,2]
[338476443,1726686632134,-22.91439432,0.0001304,2]
[338476445,1726686632148,-241.43560568,0.0001304,2]
[338476446,1726686632158,-200.0,0.00013049,2]
[338476447,1726686632168,-56.04953432,0.00013309,2]
[338476448,1726686632179,-532.14046568,0.00013309,2]
[338476449,1726686632189,-487.08,0.00013339,2]
[338476450,1726686632198,-250.0,0.00013347,2]
[338476451,1726686632208,-188.44,0.00013391,2]
[338476452,1726686632217,-188.44,0.00013395,2]
[338476453,1726686632228,-188.44,0.00013399,2]
[338476454,1726686632237,-188.44,0.00013402,2]
[338476455,1726686632246,-188.44,0.00013406,2]
[338476456,1726686632256,-411.81,0.00013407,2]
[338476457,1726686632265,-167.71,0.00013407,2]
[338476458,1726686632274,-188.44,0.00013409,2]
[338476459,1726686632283,-250.0,0.00013411,2]
[338476460,1726686632295,-188.44,0.00013413,2]
[338476461,1726686632306,-188.44,0.00013416,2]
[338476462,1726686632315,-300.0,0.00013419,2]
[338476463,1726686632324,-188.44,0.0001342,2]
[338476464,1726686632334,-188.44,0.00013423,2]
[338476465,1726686632345,-250.0,0.00013424,2]
[338476467,1726686632355,-188.44,0.00013427,2]
[338476469,1726686632364,-188.44,0.0001343,2]
[338476470,1726686632375,-188.44,0.00013434,2]
[338476473,1726686632385,-2396.36991349,0.00013437,2]
[338476477,1726686632401,-9925.73485824,0.00013437,2]
[338476480,1726686632419,-2408.87747833,0.00013437,2]
[338476481,1726686632429,-474.46635641,0.00013437,2]
[338476482,1726686632441,-740.97,0.00013437,2]
[338476483,1726686632453,-603.91888408,0.00013437,2]
[338476484,1726686632465,-910.67391534,0.00013437,2]
[338476485,1726686632476,-636.79253411,0.00013437,2]
[338476486,1726686632511,-501.23538144,0.00013437,2]
[338476487,1726686632523,-602.96067856,0.00013437,2]
[338476488,1726686632532,-188.44,0.00013437,2]
[338476489,1726686632542,-188.44,0.00013441,2]
[338476490,1726686632551,-150.0,0.00013441,2]
[338476491,1726686632561,-188.44,0.00013444,2]
[338476492,1726686632570,-188.44,0.00013448,2]
[338476493,1726686632580,-188.44,0.00013452,2]
[338476494,1726686632589,-1208.5523913,0.00013453,2]
[338476495,1726686632601,-3421.55845167,0.00013453,2]
[338476496,1726686632612,-2228.53585342,0.00013453,2]
[338476497,1726686632623,-462.72330361,0.00013453,2]
[338476498,1726686632632,-188.44,0.00013455,2]
[338476499,1726686632646,-188.44,0.00013459,2]
[338476500,1726686632655,-174.07,0.00013478,2]
[338476501,1726686632665,-499.99,0.00013478,2]
[338476502,1726686632674,-366.42,0.00013492,2]
[338476503,1726686632683,-179.84,0.00013663,2]
[338476504,1726686632692,-5393.63623453,0.00013673,2]
[338476505,1726686632703,-1697.0288294,0.00013673,2]
[338476506,1726686632718,-619.65174307,0.00013673,2]
[338476507,1726686632729,-315.0,0.00013673,2]
[338476508,1726686632740,-4036.74748476,0.00013673,2]
[338476509,1726686632751,-940.02570824,0.00013673,2]
[338476510,1726686632760,-1393.297,0.00013673,2]
[338476511,1726686632769,-1146.0,0.00013673,2]
[338476512,1726686632778,-150.0,0.00013673,2]
[338476513,1726686632789,-150.0,0.00013699,2]
[338476514,1726686632799,-179.84,0.00014038,2]
[338476515,1726686632808,-150.0,0.00014048,2]
[338476516,1726686632818,-150.0,0.00014048,2]
[338476517,1726686632827,-459.93,0.00014048,2]
[338476518,1726686632837,-160.813,0.00014048,2]
[338476519,1726686632846,-621.0,0.00014048,2]
[338476520,1726686632855,-1182.36387835,0.00014048,2]
[338476521,1726686632867,-359.63612165,0.00014048,2]
[338476522,1726686632876,-554.0,0.00014048,2]
[338476523,1726686632885,-271.995,0.00014048,2]
[338476524,1726686632906,-535.66761226,0.00014048,2]
[338476525,1726686632922,-1357.33238774,0.00014048,2]
[338476526,1726686632932,-24.61951783,0.00014048,2]
[338476527,1726686632943,-223.38048217,0.00014048,2]
[338476528,1726686632952,-488.643191,0.00014048,2]
[338476529,1726686632964,-317.356809,0.00014048,2]
[338476530,1726686632974,-2544.67435941,0.00014048,2]
[338476531,1726686632985,-801.32564059,0.00014048,2]
[338476532,1726686632995,-1917.0,0.00014048,2]
[338476533,1726686633004,-192.24,0.00014056,2]
[338476534,1726686633014,-150.0,0.00014059,2]
[338476535,1726686633024,-179.84,0.00014399,2]
[338476536,1726686633034,-150.0,0.00014409,2]
[338476537,1726686633044,-150.0,0.0001442,2]
[338476538,1726686633054,-5212.17,0.00014521,2]
[338476539,1726686633064,-1000.0,0.00014521,2]
[338476540,1726686633074,-420.0,0.0001471,2]
[338476541,1726686633084,-160.46,0.00014757,2]
[338476542,1726686633093,-150.0,0.0001478,2]
[338476543,1726686633104,-179.84,0.0001479,2]
[338476544,1726686633114,-288.224213,0.00014795,2]
[338476545,1726686633124,-3000.0,0.000148,2]
[338476546,1726686633133,-179.84,0.0001488,2]
[338476547,1726686633146,-533.8311464,0.0001488,2]
[338476548,1726686633158,-1466.1688536,0.0001488,2]
[338476549,1726686633168,-500.0,0.0001488,2]
[338476550,1726686633177,-200.0,0.0001488,2]
[338476551,1726686633186,-388.86602205,0.0001489,2]
[338476552,1726686633198,-2597.73097795,0.0001489,2]
[338476553,1726686633209,-179.84,0.0001489,2]
[338476554,1726686633218,-2997.8405,0.000149,2]
[338476555,1726686633228,-2062.3757,0.000149,2]
[338476556,1726686633238,-193.40085634,0.000149,2]
[338476557,1726686633249,-245.39924032,0.000149,2]
[338476558,1726686633259,-398.6955262,0.000149,2]
[338476559,1726686633269,-2826.62208362,0.000149,2]
[338476560,1726686633279,-588.19,0.00014972,2]
[338476561,1726686633289,-500.0,0.00014973,2]
[338476562,1726686633304,-500.0,0.00014973,2]
[338476563,1726686633314,-299.97250509,0.00014973,2]
[338476564,1726686633323,-179.84,0.0001498,2]
[338476565,1726686633333,-179.84,0.0001498,2]
[338476566,1726686633344,-158.78,0.0001498,2]
[338476567,1726686633354,-158.78,0.0001498,2]
[338476568,1726686633363,-5222.69261001,0.0001499,2]
[338476569,1726686633379,-1594.44501813,0.0001499,2]
[338476570,1726686633404,-16747.42737446,0.0001499,2]
[338476571,1726686633421,-234.7290192,0.0001499,2]
[338476572,1726686633431,-234.7290192,0.0001499,2]
[338476573,1726686633440,-234.7290192,0.0001499,2]
[338476574,1726686633450,-234.7290192,0.0001499,2]
[338476575,1726686633460,-234.7290192,0.0001499,2]
[338476576,1726686633470,-52567.3139843,0.0001499,2]
[338476577,1726686633479,-39953.7427144,0.0001499,2]
[338476578,1726686633489,-27340.1714444,0.0001499,2]
[338476579,1726686633500,-14726.6001745,0.0001499,2]
[338476580,1726686633510,-2113.0289045,0.0001499,2]
[338476581,1726686633519,-2356.45650026,0.0001499,2]
[338476582,1726686633529,-135366.54853306,0.0001499,3]
[338476583,1726686633540,-82982.30087,0.0001499,3]
[338476587,1726686638036,-179.84,0.0001498,2]
[338476588,1726686638046,-179.84,0.0001498,2]
[338476589,1726686638056,-179.84,0.0001498,2]
[338476590,1726686638066,-179.84,0.0001498,2]
[338476591,1726686638076,-179.84,0.0001498,2]
[338476592,1726686638086,-179.84,0.0001498,2]
[338476593,1726686638096,-179.84,0.0001498,2]
[338476594,1726686638106,-179.84,0.0001498,2]
[338476595,1726686638117,-179.84,0.0001498,2]
[338476596,1726686638127,-179.84,0.0001498,2]
[338476597,1726686638136,-179.84,0.0001498,2]
[338476598,1726686638147,-179.84,0.0001498,2]
[338476599,1726686638157,-4723.65746893,0.0001499,3]
[338476600,1726686638168,-6766.77178816,0.0001499,3]
[338476601,1726686638303,-829.10102755,0.0001499,3]
[338476602,1726686638315,-1019.83248483,0.0001499,3]
[338476603,1726686638327,-2613.31048833,0.0001499,3]
[338476604,1726686638339,-33624.92472288,0.0001499,3]
[338476605,1726686638500,-1035.7815816,0.0001499,3]
[338476607,1726686638513,-1959.02575318,0.0001499,3]
[338476609,1726686638525,-7969.17193469,0.0001499,3]
[338476611,1726686638537,-3458.69314524,0.0001499,3]
[338476612,1726686638636,-640295.30338968,0.0001499,3]
[338476613,1726686638651,-509.16789362,0.0001499,3]
[338476614,1726686638663,-18943.76812934,0.0001499,3]
[338476615,1726686640039,-475127.56990678,0.0001499,3]
[338476616,1726686640050,-1663.5002,0.0001499,3]
[338476617,1726686640062,-578.06080476,0.0001499,3]
[338476619,1726686640173,-1324.73356299,0.0001499,3]
[338476620,1726686640185,-351.91594489,0.0001499,3]
[338476621,1726686640197,-621.51461131,0.0001499,3]
[338476622,1726686640209,-660.549,0.0001499,3]
[338476623,1726686640221,-33598.95918226,0.0001499,3]
[338476624,1726686640232,-38721.42066455,0.0001499,3]
[338476625,1726686640243,-83348.20398924,0.0001499,3]
[338476626,1726686640254,-478.75263346,0.0001499,3]
[338476627,1726686640267,-6816.68664953,0.0001499,3]
[338476628,1726686640278,-476.45777715,0.0001499,3]
[338476629,1726686640290,-844.59940541,0.0001499,3]
[338476630,1726686640325,-357.98466,0.0001499,3]
[338476631,1726686640336,-889.49999995,0.0001499,3]
[338476632,1726686640347,-998.56,0.0001499,3]
[338476633,1726686640358,-400.075,0.0001499,3]
[338476634,1726686640370,-2266.00000008,0.0001499,3]
[338476635,1726686640382,-2303.5,0.0001499,3]
[338476636,1726686640393,-304.33735203,0.0001499,3]
[338476637,1726686640404,-1986.34492326,0.0001499,3]
[338476638,1726686640415,-290.74297566,0.0001499,3]
[338476640,1726686640426,-5135.50302712,0.0001499,3]
[338476643,1726686640437,-6896.22910835,0.0001499,3]
[338476651,1726686640509,-602.7973578,0.0001499,3]
[338476688,1726686643093,-13190.16168377,0.0001499,2]
[338476849,1726686645714,-153.79806645,0.0001489,2]
[338476851,1726686645725,-664074.84350748,0.0001499,2]
[338476852,1726686645735,-2151196.64124207,0.0001499,3]
[338476854,1726686645747,-575110.0,0.0001499,3]
[338476856,1726686645759,-132670.0,0.0001499,3]
[338476858,1726686645771,-609.55,0.0001499,3]
[338476861,1726686645784,-1202.82442801,0.0001499,3]
[338476864,1726686645808,-336.84091214,0.0001499,3]
[338476866,1726686645820,-500.57827625,0.0001499,3]
[338476933,1726686646987,-5382.015,0.0001499,3]
[338476945,1726686647212,-2008.43148739,0.0001499,3]
[338476946,1726686647227,-458.33757868,0.0001499,3]
[338477318,1726686930668,1050.0,0.00011,2]
[338477319,1726687004805,361.16,0.00011686,2]
[338477320,1726687121218,162.13,0.00010959,2]
[338477322,1726687553613,343.1,0.00011277,2]
[338477325,1726687672721,155.36,0.00010959,2]
[338477348,1726687832215,-257.90671441,0.000128,2]
[338477349,1726687832225,-1540.53732859,0.0001287,2]
[338477350,1726687832235,-177.56180833,0.000129,2]
[338477351,1726687832245,-1477.3078929,0.000129,2]
[338477352,1726687832254,-164.60097254,0.000129,2]
[338477354,1726687832268,-500.0,0.00012973,2]
[338477356,1726687832278,-158.31767819,0.0001299,2]
[338477358,1726687832287,-157.96,0.0001299,2]
[338477360,1726687832297,-113.90159841,0.0001299,2]
[338477361,1726687832321,-44.05840159,0.0001299,2]
[338477362,1726687832330,-157.96,0.0001299,2]
[338477363,1726687832340,-157.96,0.0001299,2]
[338477364,1726687832350,-157.96,0.0001299,2]
[338477365,1726687832359,-82.06159841,0.0001299,2]
[338477366,1726687832371,-75.89840159,0.0001299,2]
[338477367,1726687832381,-300.0,0.00012996,2]
[338477368,1726687832391,-150.0,0.00012996,2]
[338477369,1726687832400,-500.0,0.00012999,2]
[338477370,1726687832409,-426.88797424,0.00012999,2]
[338477371,1726687832421,-500.0,0.00012999,2]
[338477372,1726687832431,-500.0,0.00012999,2]
[338477373,1726687832440,-500.0,0.00012999,2]
[338477374,1726687832450,-500.0,0.00012999,2]
[338477375,1726687832460,-500.0,0.00012999,2]
[338477376,1726687832470,-500.0,0.00012999,2]
[338477377,1726687832479,-500.0,0.00012999,2]
[338477378,1726687832489,-547.98489142,0.00013,2]
[338477379,1726687832500,-4221.79258543,0.00013,2]
[338477380,1726687832514,-978.62989679,0.00013,2]
[338477381,1726687832526,-686.70513767,0.00013,2]
[338477382,1726687832537,-1132.38722525,0.00013,2]
[338477383,1726687832548,-6000.0,0.00013,2]
[338477384,1726687832577,-54884.18423923,0.00013,2]
[338477385,1726687832589,-1181.26213134,0.00013,2]
[338477386,1726687832601,-69105.87262194,0.00013,2]
[338477387,1726687832611,-1092.85082834,0.00013,2]
[338477388,1726687832624,-285353.59094519,0.00013,2]
[338477389,1726687832637,-2686.65209013,0.00013,2]
[338477391,1726687832648,-8774.31523528,0.00013,2]
[338477393,1726687832659,-304.05881677,0.00013,2]
[338477394,1726687832670,-3928.48700797,0.00013,2]
[338477395,1726687832692,-4700.0,0.00013,2]
[338477396,1726687832704,-536.83568415,0.00013,2]
[338477397,1726687832715,-74414.12975836,0.00013,2]
[338477398,1726687832726,-369.5,0.00013,2]
[338477399,1726687832736,-53142.63130107,0.00013,2]
[338477400,1726687832747,-2497.50370162,0.00013,2]
[338477401,1726687832760,-2437.99633404,0.00013,2]
[338477402,1726687832786,-1322.79615174,0.00013,2]
[338477403,1726687832797,-428.45648914,0.00013,2]
[338477404,1726687832808,-711.01118688,0.00013,2]
[338477405,1726687832821,-1827.91072361,0.00013,2]
[338477406,1726687832831,-486.59595781,0.00013,2]
[338477407,1726687832842,-7211.0,0.00013,2]
[338477408,1726687832853,-3603.53690901,0.00013,2]
[338477876,1726687838542,-2644.17619719,0.00012997,2]
[338477879,1726687838554,-925.56170541,0.00012997,2]
[338477895,1726687838699,-1091.90405638,0.00012997,2]
[338477897,1726687838711,-5340.98495427,0.00012997,2]
[338477899,1726687838722,-338.26352533,0.00012997,2]
[338477902,1726687838733,-729.66,0.00012997,2]
[338477905,1726687838752,-7958.54185658,0.00012997,2]
[338477907,1726687838764,-7805.56534152,0.00012997,2]
[338477909,1726687838775,-6016.27157419,0.00012997,2]
[338477913,1726687838802,-75338.1720502,0.00012997,2]
[338477915,1726687838811,-736808.49866089,0.00013,2]
[338477917,1726687838823,-6470.20833297,0.00013,2]
[338477919,1726687838834,-317.09415765,0.00013,2]
[338477935,1726687838982,-462.45588772,0.00013,2]
[338477937,1726687838993,-461.27657119,0.00013,2]
[338477940,1726687839004,-4003.657,0.00013,2]
[338478128,1726687840865,-161.04,0.0001279,2]
[338478130,1726687840875,-161.04,0.00012989,2]
[338478132,1726687840885,-97.75121658,0.00013,2]
[338478134,1726687840897,-1505.04594099,0.00013,2]
[338478137,1726687840909,-1341.45000002,0.00013,2]
[338478139,1726687840921,-262.894995,0.00013,2]
[338478141,1726687840932,-13316.1104248,0.00013,2]
[338478143,1726687840944,-436.33836381,0.00013,2]
[338478148,1726687840975,-1539.999995,0.00013,2]
[338478150,1726687840986,-3430.0000001,0.00013,2]
[338478152,1726687840999,-1360.8,0.00013,2]
[338478154,1726687841011,-255.4974,0.00013,2]
[338478156,1726687841027,-302.2027,0.00013,2]
[338478160,1726687841204,-161.04,0.0001299,2]
[338478162,1726687841214,-31077.85417484,0.00013,2]
[338478164,1726687841226,-5859.46811615,0.00013,2]
[338478167,1726687841237,-636.30972079,0.00013,2]
[338478170,1726687841261,-6564.8223725,0.00013,2]
[338478238,1726687843473,-161.04,0.0001299,2]
[338478239,1726687843484,-161.04,0.0001299,2]
[338478240,1726687843494,-1180.92,0.00013,2]
[338478241,1726687843506,-550.33964758,0.00013,2]
[338478242,1726687843518,-382.92113158,0.00013,2]
[338478244,1726687843535,-1109.25964547,0.00013,2]
[338478246,1726687843548,-326248.83968567,0.00013,2]
[338478248,1726687843559,-130634.45631405,0.00013,2]
[338478250,1726687843570,-467601.08024162,0.00013,2]
[338478252,1726687843604,-642.70249532,0.00013,2]
[338478253,1726687843615,-603.62491081,0.00013,2]
[338478561,1726687846870,-286.02511859,0.00013,2]
[338478593,1726687847186,-4640.0,0.00013,2]
[338478595,1726687847199,-21213.85,0.00013,2]
[338480147,1726688141415,150.0,0.0001268,2]
[338480148,1726688148177,294.81,0.00012711,2]
[338480149,1726688148200,150.0,0.00012711,2]
[338480150,1726688148225,5.19,0.00012711,2]
[338480151,1726688168405,200.0,0.00012461,2]
[338480152,1726688233552,1500.0,0.00012502,2]
[338480153,1726688264506,4651.08,0.00012543,2]
[338480154,1726688277606,340.95,0.00010793,2]
[338480155,1726688295386,150.0,0.00010959,2]
[338480156,1726688295414,150.0,0.00010959,2]
[338480157,1726688316845,150.0,0.00010959,2]
[338480158,1726688316867,150.0,0.00010959,2]
[338480159,1726688327445,150.0,0.00010959,2]
[338480160,1726688327469,150.0,0.00010959,2]
[338480161,1726688327490,150.0,0.00010959,2]
[338480162,1726688327510,150.0,0.00010959,2]
[338480163,1726688347462,150.0,0.0001011,2]
[338480164,1726688386407,150.0,0.00012591,2]